fUST/lending_fUST_20250121
["ID","MTS","AMOUNT","RATE_DAILY","PERIOD"]
[349739763,1737405032547,-187.45,0.0002089,2]
[349739764,1737405032557,-386.32399709,0.000209,2]
[349739765,1737405032566,-1998.20087238,0.000209,2]
[349739766,1737405032576,-589.09317412,0.000209,2]
[349739767,1737405032586,-861.03126947,0.000209,2]
[349739768,1737405032595,-155.63,0.00020973,2]
[349739769,1737405032604,-518.22267436,0.00020973,2]
[349739770,1737405032613,-500.0,0.00020973,2]
[349739771,1737405032623,-500.0,0.00020973,2]
[349739772,1737405032633,-500.0,0.00020973,2]
[349739773,1737405032642,-500.0,0.00020973,2]
[349739774,1737405032651,-245.23136529,0.00020973,2]
[349739775,1737405032661,-506.13151607,0.00020973,2]
[349739776,1737405032670,-500.72203806,0.00020973,2]
[349739777,1737405032679,-356.54354346,0.00020998,2]
[349739778,1737405032691,-187.528,0.00020999,2]
[349739779,1737405032701,-500.0,0.00020999,2]
[349739780,1737405032710,-293.32467426,0.00020999,2]
[349739781,1737405032720,-461.96257009,0.00020999,2]
[349739782,1737405032730,-249.59136147,0.00020999,2]
[349739783,1737405032937,-82.22910527,0.00020999,2]
[349739784,1737405032947,-500.0,0.00020999,2]
[349739785,1737405032957,-500.0,0.00020999,2]
[349739786,1737405032967,-500.0,0.00020999,2]
[349739787,1737405032976,-500.0,0.00020999,2]
[349739788,1737405032986,-389.64692756,0.00020999,2]
[349739789,1737405032995,-500.0,0.00020999,2]
[349739790,1737405033005,-500.0,0.00020999,2]
[349739791,1737405033014,-500.0,0.00020999,2]
[349739792,1737405033024,-500.0,0.00020999,2]
[349739793,1737405033034,-500.0,0.00020999,2]
[349739794,1737405033044,-500.0,0.00020999,2]
[349739795,1737405033054,-500.0,0.00020999,2]
[349739796,1737405033063,-500.0,0.00020999,2]
[349739797,1737405033073,-372.52897852,0.00020999,2]
[349739798,1737405033082,-419.31121839,0.00020999,2]
[349739805,1737405038319,-80.68878161,0.00020999,2]
[349739806,1737405038330,-335.78121839,0.00020999,2]
[349739807,1737405038373,-9.6039837,0.00020999,2]
[349739808,1737405038435,-154.61479791,0.00020999,2]
[349739809,1737405038452,-500.0,0.00020999,2]
[349739810,1737405038463,-500.0,0.00020999,2]
[349739811,1737405038475,-500.0,0.00020999,2]
[349739812,1737405038486,-500.0,0.00020999,2]
[349739813,1737405038497,-217.38534159,0.00020999,2]
[349739814,1737405038608,-282.61465841,0.00020999,2]
[349739815,1737405038617,-220.75487721,0.00020999,2]
[349739854,1737405289511,504.86388158,0.00024,120]
[349739856,1737405410956,163.609194,0.00013973,2]
[349739944,1737406232790,-167.839272,0.00019421,2]
[349739946,1737406232799,-18.75265286,0.00019672,2]
[349740463,1737406238500,-281.24734714,0.00019672,2]
[349740464,1737406238510,-255.79736704,0.00019673,2]
[349740465,1737406238522,-3782.50501255,0.00019673,2]
[349740466,1737406238533,-6970.87960091,0.00019673,2]
[349740467,1737406238561,-8336.3605258,0.00019673,2]
[349740468,1737406238573,-5554.4574937,0.00019673,2]
[349740469,1737406238583,-608.984,0.0001995,2]
[349740470,1737406238592,-500.0,0.00020432,2]
[349740471,1737406238601,-155.63,0.00020716,2]
[349740472,1737406238612,-187.0,0.00020716,2]
[349740473,1737406238623,-226.39,0.00020716,2]
[349740474,1737406238633,-157.0,0.00020716,2]
[349740475,1737406238643,-999.90001,0.00020731,2]
[349740476,1737406238653,-335.5883142,0.00020789,2]
[349740478,1737406238663,-188.859,0.000208,2]
[349740480,1737406238672,-555.49556829,0.00020865,2]
[349740482,1737406238682,-1590.45897023,0.00020898,5]
[349740485,1737406238694,-5389.62172385,0.00020898,5]
[349740487,1737406238704,-4109.84980964,0.00020898,5]
[349740489,1737406238716,-11418.31344179,0.00020898,5]
[349740491,1737406238728,-2696.48827973,0.00020898,5]
[349740493,1737406238738,-318.57083847,0.00020899,7]
[349740495,1737406238749,-1010.82003507,0.000209,2]
[349740498,1737406238759,-3642.94027108,0.000209,3]
[349740500,1737406238771,-12607.05560707,0.000209,3]
[349740502,1737406238781,-832.33022728,0.000209,2]
[349740504,1737406238790,-166.0,0.00020958,2]
[349740506,1737406238799,-500.0,0.00020973,2]
[349740508,1737406238808,-500.0,0.00020973,2]
[349740510,1737406238817,-500.0,0.00020973,2]
[349740512,1737406238827,-500.0,0.00020973,2]
[349740514,1737406238836,-500.0,0.00020973,2]
[349740516,1737406238846,-194.62407485,0.00020973,2]
[349740674,1737406240708,-305.37592515,0.00020973,2]
[349740675,1737406240719,-75.70569285,0.00020973,2]
[349741211,1737406246592,-365.33630945,0.00020973,2]
[349742179,1737406321194,1098.0,0.00024,120]
[349742181,1737406374740,163.654989,0.00013973,2]
[349742183,1737407201128,-434.28549362,0.000189,2]
[349742185,1737407382237,163.929245,0.00013973,2]
[349742219,1737407432813,-369.26524161,0.000189,2]
[349742221,1737407432824,-250.0,0.0001933,2]
[349742223,1737407432834,-300.0,0.00019525,2]
[349742225,1737407432847,-490.97404959,0.00019526,2]
[349742228,1737407432873,-853.9555,0.00019526,2]
[349742832,1737407439151,-9551.29315237,0.00019526,2]
[349742833,1737407439171,-572.04488034,0.00019526,2]
[349742834,1737407439180,-1311.42558082,0.00019846,2]
[349743008,1737407440883,-819.32607797,0.00019846,2]
[349743015,1737407440941,-810.72378781,0.00019846,2]
[349743017,1737407440951,-598.688,0.0001995,2]
[349743019,1737407440961,-568.21839549,0.0002,2]
[349743279,1737407443699,-2722.78160451,0.0002,2]
[349743280,1737407443709,-629.542596,0.00020298,2]
[349743282,1737407443721,-1026.5422485,0.00020298,2]
[349743284,1737407443734,-1687.5,0.00020298,2]
[349743535,1737407446848,-6862.85493619,0.00020298,2]
[349743537,1737407446858,-500.0,0.00020432,2]
[349743539,1737407446868,-1631.52374804,0.00020488,2]
[349743540,1737407446877,-1395.62131577,0.00020686,2]
[349743542,1737407446890,-8810.81846492,0.00020686,2]
[349743544,1737407446900,-161.2738098,0.00020709,2]
[349743545,1737407446910,-167.7941571,0.00020789,2]
[349743546,1737407446919,-633.36826336,0.00020799,7]
[349743547,1737407446929,-195.65960989,0.00020873,2]
[349743548,1737407446939,-2000.0991276,0.0002088,2]
[349743549,1737407446949,-151.087,0.000209,2]
[349743550,1737407446959,-804.58588639,0.000209,2]
[349743551,1737407446969,-7120.67168409,0.00020945,5]
[349743566,1737408364823,164.170716,0.00013973,2]
[349743610,1737408632005,-760.27861927,0.000189,2]
[349743611,1737408632015,-8731.37138072,0.00019631,2]
[349743620,1737408637793,-372.44326428,0.00019631,2]
[349743621,1737408637803,-161.525553,0.00019689,2]
[349743622,1737408637812,-300.0,0.00019859,2]
[349743623,1737408637821,-589.344,0.0001995,2]
[349743624,1737408637830,-500.0,0.00020432,2]
[349743625,1737408637839,-156.621993,0.00020736,4]
[349743626,1737408637848,-0.0699815,0.0002075,2]
[349743628,1737408637860,-4259.98286914,0.0002075,2]
[349743849,1737408639997,-4975.10674767,0.0002075,2]
[349743851,1737408640007,-167.7941572,0.00020789,2]
[349743853,1737408640017,-353.5775999,0.000208,2]
[349743855,1737408640027,-195.65960988,0.00020841,2]
[349743857,1737408640036,-784.65194738,0.000209,2]
[349743859,1737408640046,-155.63,0.00020941,2]
[349743861,1737408640056,-6026.29401863,0.00020941,5]
[349743863,1737408640065,-3490.04034704,0.00020941,5]
[349743865,1737408640075,-45918.94251311,0.00020941,2]
[349743867,1737408640085,-157.004,0.00020941,2]
[349743869,1737408640095,-157.431518,0.00020941,2]
[349743871,1737408640104,-151.0,0.00020941,2]
[349743873,1737408640115,-151.0,0.00020941,2]
[349743875,1737408640124,-151.0,0.00020941,2]
[349743877,1737408640134,-151.0,0.00020941,2]
[349743879,1737408640143,-151.0,0.00020941,2]
[349743881,1737408640153,-151.0,0.00020941,2]
[349743883,1737408640163,-804.474696,0.00020941,2]
[349743885,1737408640172,-151.0,0.00020941,2]
[349743887,1737408640182,-804.474696,0.00020941,2]
[349743889,1737408640191,-247.994389,0.00020941,2]
[349743891,1737408640201,-247.994389,0.00020941,2]
[349743893,1737408640209,-151.0,0.00020941,2]
[349743895,1737408640219,-151.0,0.00020941,2]
[349743897,1737408640229,-151.0,0.00020941,2]
[349743899,1737408640238,-151.0,0.00020941,2]
[349743901,1737408640248,-151.0,0.00020941,2]
[349743903,1737408640258,-151.0,0.00020941,2]
[349743905,1737408640267,-151.0,0.00020941,2]
[349743907,1737408640277,-151.0,0.00020941,2]
[349743909,1737408640287,-151.0,0.00020941,2]
[349743911,1737408640296,-151.0,0.00020941,2]
[349743913,1737408640306,-151.0,0.00020941,2]
[349743915,1737408640316,-151.0,0.00020941,2]
[349743917,1737408640326,-151.0,0.00020941,2]
[349743919,1737408640335,-298.38381,0.00020941,2]
[349743921,1737408640344,-153.994862,0.00020941,2]
[349743923,1737408640354,-711.019288,0.00020941,2]
[349743925,1737408640363,-711.019288,0.00020941,2]
[349743927,1737408640373,-151.0,0.00020941,2]
[349743929,1737408640382,-151.0,0.00020941,2]
[349743931,1737408640391,-151.0,0.00020941,2]
[349743933,1737408640401,-151.0,0.00020941,2]
[349743935,1737408640410,-161.68575,0.00020941,2]
[349743937,1737408640420,-151.0,0.00020941,2]
[349743939,1737408640429,-151.0,0.00020941,2]
[349743941,1737408640438,-151.0,0.00020941,2]
[349743943,1737408640447,-151.0,0.00020941,2]
[349743945,1737408640457,-151.0,0.00020941,2]
[349743947,1737408640467,-151.0,0.00020941,2]
[349743949,1737408640476,-326.256011,0.00020941,2]
[349743951,1737408640486,-326.256011,0.00020941,2]
[349743953,1737408640496,-326.256011,0.00020941,2]
[349743955,1737408640506,-326.256011,0.00020941,2]
[349743958,1737408640516,-326.256011,0.00020941,2]
[349743959,1737408640526,-326.256011,0.00020941,2]
[349743961,1737408640535,-1494.944522,0.00020941,2]
[349743964,1737408640545,-1494.944522,0.00020941,2]
[349743966,1737408640554,-1494.944522,0.00020941,2]
[349743968,1737408640564,-1494.944522,0.00020941,2]
[349743970,1737408640575,-1494.944522,0.00020941,2]
[349743972,1737408640585,-1494.944522,0.00020941,2]
[349743974,1737408640594,-151.0,0.00020941,2]
[349743976,1737408640604,-151.0,0.00020941,2]
[349743978,1737408640613,-151.0,0.00020941,2]
[349743980,1737408640623,-214.43047,0.00020941,2]
[349743982,1737408640632,-1454.386226,0.00020941,2]
[349743984,1737408640641,-1454.386226,0.00020941,2]
[349743986,1737408640651,-1454.386226,0.00020941,2]
[349743996,1737408640766,-1454.386226,0.00020941,2]
[349743997,1737408640779,-1454.386226,0.00020941,2]
[349743998,1737408640789,-1454.386226,0.00020941,2]
[349743999,1737408640799,-151.0,0.00020941,2]
[349744000,1737408640809,-151.0,0.00020941,2]
[349744001,1737408640819,-151.0,0.00020941,2]
[349744002,1737408640828,-151.0,0.00020941,2]
[349744003,1737408640837,-151.0,0.00020941,2]
[349744004,1737408640846,-151.0,0.00020941,2]
[349744005,1737408640855,-151.0,0.00020941,2]
[349744006,1737408640864,-228.492434,0.00020941,2]
[349744007,1737408640874,-151.0,0.00020941,2]
[349744008,1737408640883,-151.0,0.00020941,2]
[349744009,1737408640892,-151.0,0.00020941,2]
[349744010,1737408640901,-151.0,0.00020941,2]
[349744011,1737408640910,-312.348874,0.00020941,2]
[349744012,1737408640920,-312.348874,0.00020941,2]
[349744013,1737408640929,-312.348874,0.00020941,2]
[349744014,1737408640938,-312.348874,0.00020941,2]
[349744015,1737408640947,-312.348874,0.00020941,2]
[349744016,1737408640956,-312.348874,0.00020941,2]
[349744017,1737408640966,-934.185649,0.00020941,2]
[349744018,1737408640975,-934.185649,0.00020941,2]
[349744019,1737408640984,-151.0,0.00020941,2]
[349744020,1737408640993,-934.185649,0.00020941,2]
[349744021,1737408641004,-151.0,0.00020941,2]
[349744022,1737408641015,-934.185649,0.00020941,2]
[349744023,1737408641024,-151.331147,0.00020941,2]
[349744024,1737408641033,-151.0,0.00020941,2]
[349744025,1737408641043,-151.0,0.00020941,2]
[349744026,1737408641052,-934.185649,0.00020941,2]
[349744027,1737408641061,-934.185649,0.00020941,2]
[349744028,1737408641071,-934.185649,0.00020941,2]
[349744029,1737408641082,-934.185649,0.00020941,2]
[349744030,1737408641091,-179.176531,0.00020941,2]
[349744031,1737408641100,-179.176531,0.00020941,2]
[349744032,1737408641111,-179.176531,0.00020941,2]
[349744033,1737408641120,-179.176531,0.00020941,2]
[349744034,1737408641130,-179.176531,0.00020941,2]
[349744035,1737408641139,-179.176531,0.00020941,2]
[349744036,1737408641149,-179.176531,0.00020941,2]
[349744037,1737408641159,-179.176531,0.00020941,2]
[349744038,1737408641169,-151.0,0.00020941,2]
[349744039,1737408641179,-151.0,0.00020941,2]
[349744040,1737408641188,-151.0,0.00020941,2]
[349744041,1737408641197,-151.0,0.00020941,2]
[349744042,1737408641206,-151.0,0.00020941,2]
[349744043,1737408641216,-151.0,0.00020941,2]
[349744044,1737408641225,-151.0,0.00020941,2]
[349744045,1737408641235,-151.0,0.00020941,2]
[349744046,1737408641244,-308.302734,0.00020941,2]
[349744047,1737408641253,-308.302734,0.00020941,2]
[349744048,1737408641263,-308.302734,0.00020941,2]
[349744049,1737408641273,-308.302734,0.00020941,2]
[349744050,1737408641282,-308.302734,0.00020941,2]
[349744052,1737408641292,-151.9016,0.00020941,2]
[349744054,1737408641301,-308.302734,0.00020941,2]
[349744055,1737408641310,-308.302734,0.00020941,2]
[349744056,1737408641319,-308.302734,0.00020941,2]
[349744057,1737408641329,-308.302734,0.00020941,2]
[349744058,1737408641339,-308.302734,0.00020941,2]
[349744059,1737408641348,-326.525821,0.00020941,2]
[349744060,1737408641357,-326.525821,0.00020941,2]
[349744061,1737408641367,-326.525821,0.00020941,2]
[349744062,1737408641377,-326.525821,0.00020941,2]
[349744063,1737408641386,-326.525821,0.00020941,2]
[349744064,1737408641395,-326.525821,0.00020941,2]
[349744065,1737408641404,-151.144195,0.00020941,2]
[349744066,1737408641414,-326.525821,0.00020941,2]
[349744067,1737408641423,-326.525821,0.00020941,2]
[349744068,1737408641433,-326.525821,0.00020941,2]
[349744069,1737408641443,-326.525821,0.00020941,2]
[349744070,1737408641452,-151.0,0.00020941,2]
[349744071,1737408641461,-151.0,0.00020941,2]
[349744072,1737408641470,-151.0,0.00020941,2]
[349744073,1737408641479,-1754.737273,0.00020941,2]
[349744074,1737408641489,-1754.737273,0.00020941,2]
[349744075,1737408641498,-1754.737273,0.00020941,2]
[349744076,1737408641507,-1754.737273,0.00020941,2]
[349744077,1737408641517,-1754.737273,0.00020941,2]
[349744078,1737408641526,-1754.737273,0.00020941,2]
[349744079,1737408641535,-1754.737273,0.00020941,2]
[349744080,1737408641544,-1754.737273,0.00020941,2]
[349744081,1737408641554,-1754.737273,0.00020941,2]
[349744082,1737408641563,-1754.737273,0.00020941,2]
[349744083,1737408641572,-1754.737273,0.00020941,2]
[349744084,1737408641581,-1754.737273,0.00020941,2]
[349744085,1737408641590,-1754.737273,0.00020941,2]
[349744086,1737408641600,-1754.737273,0.00020941,2]
[349744087,1737408641609,-227.864429,0.00020941,2]
[349744088,1737408641618,-227.864429,0.00020941,2]
[349744089,1737408641628,-200.1544988,0.00020941,2]
[349744090,1737408641637,-500.0,0.00020973,2]
[349744091,1737408641646,-500.0,0.00020973,2]
[349744092,1737408641657,-500.0,0.00020973,2]
[349744093,1737408641668,-500.0,0.00020973,2]
[349744094,1737408641678,-500.0,0.00020973,2]
[349744095,1737408641687,-500.0,0.00020973,2]
[349744096,1737408641698,-500.0,0.00020973,2]
[349744097,1737408641707,-504.65226578,0.00020973,2]
[349744098,1737408641717,-581.02208682,0.00020973,2]
[349744099,1737408641726,-500.0,0.00020973,2]
[349744100,1737408641737,-500.0,0.00020973,2]
[349744101,1737408641747,-500.0,0.00020973,2]
[349744102,1737408641757,-500.0,0.00020973,2]
[349744103,1737408641769,-500.0,0.00020973,2]
[349744104,1737408641778,-576.36693469,0.00020973,2]
[349744105,1737408641788,-500.0,0.00020973,2]
[349744106,1737408641798,-500.0,0.00020973,2]
[349744107,1737408641807,-500.0,0.00020973,2]
[349744108,1737408641816,-264.44047,0.00020973,2]
[349744109,1737408641826,-151.0,0.00020973,2]
[349744110,1737408641835,-151.0,0.00020973,2]
[349744111,1737408641845,-151.0,0.00020973,2]
[349744112,1737408641854,-151.0,0.00020973,2]
[349744113,1737408641864,-151.0,0.00020973,2]
[349744114,1737408641874,-151.0,0.00020973,2]
[349744115,1737408641883,-151.0,0.00020973,2]
[349744116,1737408641893,-299.405982,0.00020973,2]
[349744117,1737408641903,-711.019288,0.00020973,2]
[349744118,1737408641912,-151.0,0.00020973,2]
[349744119,1737408641922,-151.0,0.00020973,2]
[349744120,1737408641931,-326.256011,0.00020973,2]
[349744121,1737408641941,-326.256011,0.00020973,2]
[349744122,1737408641950,-1494.944522,0.00020973,2]
[349744123,1737408641960,-1494.944522,0.00020973,2]
[349744124,1737408641969,-151.0,0.00020973,2]
[349744125,1737408641979,-151.0,0.00020973,2]
[349744126,1737408641988,-1454.386226,0.00020973,2]
[349744127,1737408641998,-1454.386226,0.00020973,2]
[349744128,1737408642011,-1454.386226,0.00020973,2]
[349744129,1737408642021,-1454.386226,0.00020973,2]
[349744130,1737408642030,-151.0,0.00020973,2]
[349744131,1737408642039,-151.0,0.00020973,2]
[349744132,1737408642049,-151.0,0.00020973,2]
[349744133,1737408642059,-151.0,0.00020973,2]
[349744134,1737408642069,-151.0,0.00020973,2]
[349744135,1737408642080,-151.0,0.00020973,2]
[349744136,1737408642092,-312.348874,0.00020973,2]
[349744137,1737408642102,-312.348874,0.00020973,2]
[349744138,1737408642112,-312.348874,0.00020973,2]
[349744139,1737408642122,-312.348874,0.00020973,2]
[349744140,1737408642131,-934.185649,0.00020973,2]
[349744141,1737408642141,-934.185649,0.00020973,2]
[349744142,1737408642151,-151.0,0.00020973,2]
[349744143,1737408642161,-151.0,0.00020973,2]
[349744144,1737408642170,-934.185649,0.00020973,2]
[349744145,1737408642180,-934.185649,0.00020973,2]
[349744146,1737408642190,-179.176531,0.00020973,2]
[349744147,1737408642200,-179.176531,0.00020973,2]
[349744148,1737408642210,-179.176531,0.00020973,2]
[349744149,1737408642220,-179.176531,0.00020973,2]
[349744152,1737408642324,-151.0,0.00020973,2]
[349744154,1737408642335,-151.0,0.00020973,2]
[349744156,1737408642345,-308.302734,0.00020973,2]
[349744158,1737408642356,-308.302734,0.00020973,2]
[349744159,1737408642366,-308.302734,0.00020973,2]
[349744160,1737408642375,-308.302734,0.00020973,2]
[349744161,1737408642385,-308.302734,0.00020973,2]
[349744162,1737408642395,-308.302734,0.00020973,2]
[349744163,1737408642405,-326.525821,0.00020973,2]
[349744164,1737408642414,-326.525821,0.00020973,2]
[349744165,1737408642423,-326.525821,0.00020973,2]
[349744166,1737408642433,-326.525821,0.00020973,2]
[349744167,1737408642443,-326.525821,0.00020973,2]
[349744168,1737408642453,-326.525821,0.00020973,2]
[349744170,1737408642463,-1754.737273,0.00020973,2]
[349744171,1737408642473,-1754.737273,0.00020973,2]
[349744172,1737408642482,-1754.737273,0.00020973,2]
[349744173,1737408642492,-1754.737273,0.00020973,2]
[349744174,1737408642501,-1754.737273,0.00020973,2]
[349744175,1737408642513,-1754.73726931,0.00020973,2]
[349744176,1737408642523,-237.59298615,0.00020984,2]
[349744177,1737408642532,-412.72770489,0.00020984,2]
[349744178,1737408642542,-500.0,0.00020984,2]
[349744179,1737408642552,-500.0,0.00020984,2]
[349744180,1737408642562,-500.0,0.00020984,2]
[349744181,1737408642571,-500.0,0.00020984,2]
[349744182,1737408642581,-421.66842934,0.00020984,2]
[349744183,1737408642590,-500.0,0.00020984,2]
[349744184,1737408642600,-500.0,0.00020984,2]
[349744185,1737408642609,-500.0,0.00020984,2]
[349744186,1737408642619,-500.0,0.00020984,2]
[349744187,1737408642629,-500.0,0.00020984,2]
[349744188,1737408642640,-409.18591416,0.00020984,2]
[349744189,1737408642650,-151.0,0.00020985,2]
[349744190,1737408642663,-151.0,0.00020985,2]
[349744191,1737408642673,-151.443016,0.00020985,2]
[349744192,1737408642683,-151.0,0.00020985,2]
[349744193,1737408642694,-151.0,0.00020985,2]
[349744194,1737408642703,-151.0,0.00020985,2]
[349744196,1737408642713,-151.0,0.00020985,2]
[349744197,1737408642723,-151.0,0.00020985,2]
[349744198,1737408642733,-151.0,0.00020985,2]
[349744199,1737408642743,-151.0,0.00020985,2]
[349744200,1737408642752,-151.0,0.00020985,2]
[349744201,1737408642763,-151.0,0.00020985,2]
[349744202,1737408642772,-151.0,0.00020985,2]
[349744203,1737408642782,-804.474696,0.00020985,2]
[349744204,1737408642791,-804.474696,0.00020985,2]
[349744205,1737408642801,-804.474696,0.00020985,2]
[349744206,1737408642811,-151.0,0.00020985,2]
[349744208,1737408642820,-151.0,0.00020985,2]
[349744210,1737408642830,-804.474696,0.00020985,2]
[349744212,1737408642839,-804.474696,0.00020985,2]
[349744213,1737408642850,-804.474696,0.00020985,2]
[349744214,1737408642860,-247.994389,0.00020985,2]
[349744215,1737408642870,-247.994389,0.00020985,2]
[349744216,1737408642880,-247.994389,0.00020985,2]
[349744217,1737408642889,-247.994389,0.00020985,2]
[349744218,1737408642899,-247.994389,0.00020985,2]
[349744219,1737408642908,-247.994389,0.00020985,2]
[349744220,1737408642917,-151.0,0.00020985,2]
[349744221,1737408642927,-151.0,0.00020985,2]
[349744222,1737408642937,-151.0,0.00020985,2]
[349744223,1737408642946,-151.0,0.00020985,2]
[349744224,1737408642957,-151.0,0.00020985,2]
[349744225,1737408642966,-151.0,0.00020985,2]
[349744226,1737408642976,-151.0,0.00020985,2]
[349744227,1737408642986,-151.0,0.00020985,2]
[349744228,1737408642996,-151.0,0.00020985,2]
[349744229,1737408643005,-151.0,0.00020985,2]
[349744230,1737408643017,-151.0,0.00020985,2]
[349744231,1737408643027,-151.0,0.00020985,2]
[349744232,1737408643037,-151.0,0.00020985,2]
[349744233,1737408643046,-151.0,0.00020985,2]
[349744234,1737408643056,-151.0,0.00020985,2]
[349744235,1737408643066,-151.0,0.00020985,2]
[349744236,1737408643078,-257.446264,0.00020985,2]
[349744237,1737408643088,-151.0,0.00020985,2]
[349744238,1737408643097,-151.0,0.00020985,2]
[349744239,1737408643107,-151.0,0.00020985,2]
[349744240,1737408643117,-151.0,0.00020985,2]
[349744241,1737408643127,-151.0,0.00020985,2]
[349744242,1737408643136,-151.0,0.00020985,2]
[349744243,1737408643146,-151.0,0.00020985,2]
[349744244,1737408643156,-151.0,0.00020985,2]
[349744245,1737408643166,-151.0,0.00020985,2]
[349744246,1737408643176,-151.0,0.00020985,2]
[349744247,1737408643186,-151.0,0.00020985,2]
[349744248,1737408643195,-151.0,0.00020985,2]
[349744249,1737408643205,-151.0,0.00020985,2]
[349744250,1737408643215,-151.0,0.00020985,2]
[349744251,1737408643224,-151.0,0.00020985,2]
[349744252,1737408643234,-151.0,0.00020985,2]
[349744253,1737408643243,-711.019288,0.00020985,2]
[349744254,1737408643253,-711.019288,0.00020985,2]
[349744255,1737408643264,-711.019288,0.00020985,2]
[349744256,1737408643274,-711.019288,0.00020985,2]
[349744257,1737408643283,-711.019288,0.00020985,2]
[349744258,1737408643292,-711.019288,0.00020985,2]
[349744259,1737408643302,-711.019288,0.00020985,2]
[349744260,1737408643311,-711.019288,0.00020985,2]
[349744261,1737408643320,-711.019288,0.00020985,2]
[349744262,1737408643329,-711.019288,0.00020985,2]
[349744263,1737408643339,-151.0,0.00020985,2]
[349744264,1737408643349,-151.0,0.00020985,2]
[349744265,1737408643358,-151.0,0.00020985,2]
[349744266,1737408643368,-230.901446,0.00020985,2]
[349744267,1737408643378,-151.0,0.00020985,2]
[349744268,1737408643387,-151.0,0.00020985,2]
[349744269,1737408643397,-151.0,0.00020985,2]
[349744270,1737408643406,-151.0,0.00020985,2]
[349744271,1737408643415,-574.205319,0.00020985,2]
[349744272,1737408643425,-574.205319,0.00020985,2]
[349744273,1737408643434,-574.205319,0.00020985,2]
[349744274,1737408643444,-574.205311,0.00020985,2]
[349744275,1737408643454,-326.256011,0.00020985,2]
[349744276,1737408643463,-326.256011,0.00020985,2]
[349744277,1737408643473,-326.256011,0.00020985,2]
[349744278,1737408643482,-326.256011,0.00020985,2]
[349744279,1737408643492,-326.256011,0.00020985,2]
[349744280,1737408643502,-326.256011,0.00020985,2]
[349744281,1737408643513,-63.29042122,0.00020985,2]
[349744282,1737408644129,-227.864429,0.00020941,2]
[349744283,1737408644139,-227.864429,0.00020941,2]
[349744284,1737408644149,-227.864429,0.00020941,2]
[349744285,1737408644159,-227.864429,0.00020941,2]
[349744286,1737408644170,-227.864429,0.00020941,2]
[349744287,1737408644180,-227.864429,0.00020973,2]
[349744288,1737408644189,-262.96558978,0.00020985,2]
[349744289,1737408644199,-326.256011,0.00020985,2]
[349744290,1737408644209,-326.256011,0.00020985,2]
[349744291,1737408644218,-326.256011,0.00020985,2]
[349744292,1737408644227,-326.256011,0.00020985,2]
[349744293,1737408644237,-326.256015,0.00020985,2]
[349744294,1737408644246,-1088.63817077,0.00020985,2]
[349744295,1737408644290,-406.30635123,0.00020985,2]
[349744296,1737408644300,-1165.2497855,0.00020985,2]
[349744297,1737408644312,-329.6947365,0.00020985,2]
[349744298,1737408644321,-45.46024244,0.00020985,2]
[349744306,1737408645790,-227.864429,0.00020941,2]
[349744307,1737408645800,-227.864429,0.00020941,2]
[349744308,1737408645810,-227.864429,0.00020941,2]
[349744309,1737408645819,-227.864429,0.00020941,2]
[349744310,1737408645828,-227.864429,0.00020941,2]
[349744311,1737408645837,-227.864429,0.00020973,2]
[349744312,1737408645846,-227.864429,0.00020973,2]
[349744313,1737408645856,-1449.48427956,0.00020985,2]
[349744314,1737408645865,-1494.944522,0.00020985,2]